bitfinex/quotes_SOLUSD_20250522
["timestamp","ask_amount","ask_price","bid_price","bid_amount"]
[1747890456498,22.32908792,177.2,177.14,22.32908792]
[1747890456724,22.32908792,177.2,177.15,22.32908792]
[1747890456917,22.32908792,177.21,177.15,22.32908792]
[1747890457129,19.75169299,177.2,177.15,22.32908792]
[1747890457311,42.08078091,177.2,177.14,22.32908792]
[1747890457496,26.0,177.17,177.09,1.5815]
[1747890457699,26.0,177.17,177.14,22.32908792]
[1747890459345,5.64461503,177.16,177.14,22.32908792]
[1747890459519,5.64461503,177.16,177.13,22.32908792]
[1747890459912,42.08524054,177.16,177.05,53.11366218]
[1747890460219,22.32908792,177.14,177.09,22.32908792]
[1747890460409,22.32908792,177.14,177.08,22.32908792]
[1747890460608,22.32908792,177.14,177.09,22.32908792]
[1747890460813,19.75615262,177.16,177.09,22.32908792]
[1747890461121,22.32908792,177.15,177.09,22.32908792]
[1747890461331,19.75838319,177.14,177.04,8.092]
[1747890461516,42.08747111,177.14,177.09,22.32908792]
[1747890461916,42.08747111,177.14,177.06,26.0]
[1747890462117,42.08747111,177.14,177.09,22.32908792]
[1747890462541,19.75838319,177.14,177.08,22.32908792]
[1747890462842,42.08747111,177.14,177.08,22.32908792]
[1747890464543,22.32908792,177.13,177.08,22.32908792]
[1747890464844,36.44221877,177.14,177.08,22.32908792]
[1747890465020,36.44221877,177.14,177.05,26.0]
[1747890465021,22.32908792,177.11,177.04,8.092]
[1747890465219,22.32908792,177.09,176.99,6.3092]
[1747890465442,22.32908792,177.08,177.02,22.32908792]
[1747890465620,18.64964886,177.11,177.02,22.32908792]
[1747890465621,18.64964886,177.11,177.03,22.32908792]
[1747890466016,22.32908792,177.1,177.04,22.32908792]
[1747890466252,22.32908792,177.09,177.02,26.0]
[1747890466422,22.32908792,177.07,177.01,22.32908792]
[1747890467040,42.09639843,177.06,177.0,22.32908792]
[1747890467342,19.76731051,177.06,177.01,22.32908792]
[1747890467935,42.09639843,177.06,177.01,22.32908792]
[1747890468138,22.32908792,177.05,176.96,4.42624682]
[1747890468342,22.32908792,177.04,176.98,22.32908792]
[1747890468617,22.32908792,176.99,176.94,22.32908792]
[1747890469067,5.65035597,176.98,176.95,22.32908792]
[1747890469248,5.65008849,176.99,176.96,22.32908792]
[1747890469618,5.65008849,176.99,176.97,22.32908792]
[1747890470240,5.65008849,176.99,176.96,22.32908792]
[1747890470627,5.65008849,176.99,176.95,22.32908792]
[1747890470941,33.88,177.02,176.96,22.32908792]
[1747890470942,5.64939833,177.01,176.96,22.32908792]
[1747890471346,27.97848625,177.01,176.93,26.0]
[1747890471522,5.64939833,177.01,176.96,22.32908792]
[1747890471724,5.64939833,177.01,176.93,26.0]
[1747890471725,5.64939833,177.01,176.97,22.32908792]
[1747890471932,27.97848625,177.01,176.96,22.32908792]
[1747890472136,27.97848625,177.01,176.95,22.32908792]
[1747890472137,22.32908792,177.0,176.95,22.32908792]
[1747890472326,22.32908792,177.0,176.94,22.32908792]
[1747890473048,27.97912464,176.99,176.91,26.0]
[1747890473249,19.77512853,176.99,176.93,22.32908792]
[1747890473560,22.32908792,176.97,176.91,48.32908792]
[1747890474048,22.32908792,176.97,176.92,22.32908792]
[1747890474351,22.32908792,176.96,176.91,22.32908792]
[1747890474722,22.32908792,176.96,176.9,48.32908792]
[1747890475127,27.98040185,176.95,176.9,22.32908792]
[1747890475826,5.65131393,176.95,176.9,22.32908792]
[1747890476324,67.20964886,177.0,176.94,22.32908792]
[1747890476325,5.65003672,176.99,176.94,22.32908792]
[1747890476530,5.65003672,176.99,176.95,22.32908792]
[1747890476750,5.65003672,176.99,176.96,22.32908792]
[1747890477327,5.65003672,176.99,176.89,26.0]
[1747890477643,5.65003672,176.99,176.95,22.32908792]
[1747890477831,5.65003672,176.99,176.89,39.01966689]
[1747890477832,39.52976143,177.0,176.97,22.32908792]
[1747890478247,39.52976143,177.0,176.92,26.0]
[1747890478441,39.52976143,177.0,176.96,22.32908792]
[1747890478840,39.52976143,177.0,176.97,22.32908792]
[1747890479135,70.88908792,177.03,176.99,22.32908792]
[1747890479136,5.64938093,177.02,176.99,22.32908792]
[1747890479340,14.11863398,177.08,176.93,27.98094975]
[1747890479341,5.647803,177.06,177.01,22.32908792]
[1747890479541,5.647803,177.06,177.02,22.32908792]
[1747890480452,67.20964886,177.09,177.05,22.32908792]
[1747890480453,5.64716512,177.08,177.05,22.32908792]
[1747890480650,5.64716512,177.08,176.98,0.14216157]
[1747890480836,5.64716512,177.08,177.06,22.32908792]
[1747890481044,48.56,177.09,177.07,22.32908792]
[1747890481352,5.64685431,177.09,177.07,22.32908792]
[1747890481547,5.64685431,177.09,177.06,22.32908792]
[1747890481735,5.64685431,177.09,177.0,26.0]
[1747890481936,5.64685431,177.09,177.05,22.32908792]
[1747890482645,5.64685431,177.09,177.06,22.32908792]
[1747890483162,5.64652738,177.1,177.07,22.32908792]
[1747890483330,5.64625109,177.11,177.08,22.32908792]
[1747890483529,5.64625109,177.11,177.07,22.32908792]
[1747890484451,5.64625109,177.11,177.08,22.32908792]
[1747890484651,5.64588803,177.13,177.1,22.32908792]
[1747890484951,5.64528369,177.14,177.11,22.32908792]
[1747890485336,22.32908792,177.13,177.07,22.32908792]
[1747890485536,22.32908792,177.11,177.05,22.32908792]
[1747890485736,22.32908792,177.1,177.05,22.32908792]
[1747890485956,22.32908792,177.11,177.05,22.32908792]
[1747890486276,33.88,177.12,177.06,22.32908792]
[1747890486567,22.32908792,177.11,177.06,22.32908792]
[1747890486927,56.20908792,177.12,177.06,22.32908792]
[1747890487128,5.64620857,177.11,177.06,22.32908792]
[1747890487549,19.76172999,177.11,177.02,26.0]
[1747890487855,19.76172999,177.11,177.06,22.32908792]
[1747890489158,19.76172999,177.11,177.07,22.32908792]
[1747890489359,5.64620857,177.11,177.08,22.32908792]
[1747890489547,5.64620857,177.11,177.1,22.32908792]
[1747890489743,5.64620857,177.11,177.03,26.0]
[1747890489957,5.64620857,177.11,177.09,22.32908792]
[1747890490339,5.64620857,177.11,177.08,22.32908792]
[1747890490564,5.64620857,177.11,177.07,22.32908792]
[1747890490876,5.64620857,177.11,177.09,22.32908792]
[1747890491171,19.76108985,177.12,177.07,22.32908792]
[1747890491373,19.76108985,177.12,177.08,22.32908792]
[1747890491541,19.76108985,177.12,177.07,22.32908792]
[1747890492143,22.32908792,177.11,177.06,22.32908792]
[1747890492344,22.32908792,177.11,176.99,1.6233]
[1747890492345,22.32908792,177.08,176.99,1.6233]
[1747890492837,159.22908792,177.07,177.01,22.32908792]
[1747890493044,136.9,177.07,177.02,22.32908792]
[1747890493280,5.647803,177.06,177.04,22.32908792]
[1747890493440,5.647803,177.06,177.03,22.32908792]
[1747890493639,5.647803,177.06,176.99,27.6233]
[1747890493640,19.76731051,177.06,176.99,27.6233]
[1747890493839,19.76731051,177.06,177.01,22.32908792]
[1747890494063,19.76731051,177.06,177.02,22.32908792]
[1747890494275,5.647803,177.06,177.03,22.32908792]
[1747890495067,5.647803,177.06,176.99,27.6233]
[1747890495362,19.76731051,177.06,177.01,22.32908792]
[1747890495875,5.647803,177.06,177.03,22.32908792]
[1747890496388,5.647803,177.06,177.02,22.32908792]
[1747890497477,136.9,177.1,177.05,22.32908792]
[1747890497685,33.88,177.12,177.08,22.32908792]
[1747890497980,70.32415742,177.12,177.06,22.32908792]
[1747890498143,70.32415742,177.12,177.05,22.32908792]
[1747890498144,22.32908792,177.11,177.05,22.32908792]
[1747890498769,22.32908792,177.11,177.06,22.32908792]
[1747890499152,19.76284584,177.1,177.06,22.32908792]
[1747890500368,178.99193376,177.1,177.05,22.32908792]
[1747890500542,156.66284584,177.1,177.05,22.32908792]
[1747890502284,156.66284584,177.1,177.06,22.32908792]
[1747890502776,156.66284584,177.1,177.07,22.32908792]
[1747890504673,156.66284584,177.1,177.06,22.32908792]
[1747890504881,178.99193376,177.1,176.99,1.6233]
[1747890505176,22.32908792,177.08,176.99,1.6233]
[1747890505477,22.32908792,177.08,177.03,22.32908792]
[1747890506061,5.64748404,177.07,177.03,22.32908792]
[1747890506449,19.76619415,177.07,177.03,22.32908792]
[1747890506752,19.76619415,177.07,177.04,22.32908792]
[1747890507160,19.76619415,177.07,177.03,22.32908792]
[1747890508380,14.11871011,177.07,177.02,22.32908792]
[1747890508584,14.11871011,177.07,176.96,32.2407]
[1747890508585,193.10908792,177.06,176.96,32.2407]
[1747890508765,170.78,177.06,177.01,22.32908792]
[1747890508967,170.78,177.06,177.02,22.32908792]
[1747890509563,170.78,177.06,177.03,22.32908792]
[1747890509876,22.32908792,177.05,176.99,22.32908792]
[1747890510585,42.09863152,177.04,176.98,22.32908792]
[1747890511464,5.64844103,177.04,177.0,22.32908792]
[1747890512082,5.64844103,177.04,176.95,1.5005]
[1747890513985,19.7695436,177.04,176.95,1.5005]
[1747890514489,22.32908792,177.02,176.96,22.32908792]
[1747890514682,33.9,177.01,176.96,22.32908792]
[1747890515282,22.32908792,177.0,176.95,22.32908792]
[1747890515490,22.32908792,177.0,176.94,22.32908792]
[1747890515683,22.32908792,177.0,176.91,27.5532]
[1747890515892,5.65003672,176.99,176.96,22.32908792]
[1747890516070,5.65003672,176.99,176.97,22.32908792]
[1747890516773,5.65003672,176.99,176.96,22.32908792]
[1747890516980,5.65003672,176.99,176.97,22.32908792]
[1747890517370,5.64971751,177.0,176.97,22.32908792]
[1747890517567,5.64971751,177.0,176.96,22.32908792]
[1747890517864,5.64971751,177.0,176.91,1.5532]
[1747890517865,19.77401129,177.0,176.91,1.5532]
[1747890518069,42.10309921,177.0,176.94,22.32908792]
[1747890518296,42.10309921,177.0,176.91,1.5532]
[1747890518478,22.32908792,176.99,176.94,22.32908792]
[1747890519088,42.10309921,177.0,176.94,22.32908792]
[1747890519789,22.32908792,176.98,176.93,22.32908792]
[1747890520588,22.32908792,176.99,176.93,22.32908792]
[1747890521098,136.9,176.99,176.94,22.32908792]
[1747890521268,136.9,176.99,176.91,1.5532]
[1747890521269,136.9,176.99,176.95,22.32908792]
[1747890521473,136.9,176.99,176.96,22.32908792]
[1747890522291,5.65035597,176.98,176.96,22.32908792]
[1747890522482,5.65035597,176.98,176.95,22.32908792]
[1747890522995,5.65035597,176.98,176.94,22.32908792]
[1747890523488,5.65035597,176.98,176.95,22.32908792]
[1747890523666,5.65035597,176.98,176.95,14.16638689]
[1747890524398,19.7762459,176.98,176.91,27.5532]
[1747890524580,33.94263279,176.98,176.93,14.16638689]
[1747890524974,19.7762459,176.98,176.94,14.16638689]
[1747890525175,5.65035597,176.98,176.95,14.16638689]
[1747890525788,5.65035597,176.98,176.91,27.5532]
[1747890526093,5.65035597,176.98,176.94,14.16638689]
[1747890526607,5.65035597,176.98,176.93,14.16638689]
[1747890527701,19.81674286,176.98,176.93,14.16638689]
[1747890528480,5.65035597,176.98,176.93,14.16638689]
[1747890528679,33.94263279,176.98,176.92,14.16638689]
[1747890530184,14.16638689,176.97,176.92,14.16638689]
[1747890531402,14.16638689,176.97,176.91,26.0]
[1747890531403,14.16638689,176.96,176.91,26.0]
[1747890531610,32.81603575,176.97,176.91,40.16638689]
[1747890531790,5.65099457,176.96,176.91,40.16638689]
[1747890532410,5.65099457,176.96,176.94,14.16638689]
[1747890532614,5.64939833,177.01,176.95,14.16638689]
[1747890532786,136.9,177.02,176.95,14.16638689]
[1747890532787,5.64915802,177.02,177.0,14.16638689]
[1747890533946,5.64876009,177.03,177.0,14.16638689]
[1747890534434,5.64876009,177.03,176.95,1.5029]
[1747890534618,5.64876009,177.03,177.0,14.16638689]
[1747890536508,5.64876009,177.03,177.01,14.16638689]
[1747890538009,5.64876009,177.03,177.0,14.16638689]
[1747890538844,19.77066033,177.03,176.95,1.5029]
[1747890539152,19.77066033,177.03,176.93,26.0]
[1747890539153,14.16638689,177.01,176.93,26.0]
[1747890539312,14.16638689,177.01,176.95,14.16638689]
[1747890540126,14.16638689,176.99,176.91,1.5029]
[1747890540317,151.06638689,176.98,176.92,14.16638689]
[1747890540746,136.9,176.98,176.94,14.16638689]
[1747890540939,136.9,176.98,176.91,1.5029]
[1747890540940,136.9,176.98,176.97,14.16638689]
[1747890541150,33.9,177.0,176.97,14.16638689]
[1747890541530,33.9,177.0,176.96,14.16638689]
[1747890542248,5.65003672,176.99,176.96,14.16638689]
[1747890543343,5.65003672,176.99,176.94,26.0]
[1747890543545,5.65003672,176.99,176.96,14.16638689]
[1747890544425,19.77512853,176.99,176.94,14.16638689]
[1747890544735,33.94151542,176.99,176.93,14.16638689]
[1747890545052,170.84151542,176.99,176.93,14.16638689]
[1747890546359,14.16638689,176.98,176.93,14.16638689]
[1747890546663,14.16638689,176.98,176.92,14.16638689]
[1747890546827,156.67512853,176.99,176.94,14.16638689]
[1747890546828,170.84151542,176.99,176.94,14.16638689]
[1747890547033,156.67512853,176.99,176.95,14.16638689]
[1747890547528,14.16638689,176.98,176.93,14.16638689]
[1747890547731,14.16638689,176.98,176.92,14.16638689]
[1747890548166,14.16638689,176.97,176.92,14.16638689]
[1747890548342,14.16638689,176.98,176.92,14.16638689]
[1747890548548,19.77736338,176.97,176.92,14.16638689]
[1747890548748,14.16638689,176.95,176.89,26.0]
[1747890548958,14.16638689,176.95,176.9,14.16638689]
[1747890549259,19.77736338,176.97,176.93,14.16638689]
[1747890549674,14.16638689,176.96,176.91,14.16638689]
[1747890549970,33.94375027,176.97,176.91,14.16638689]
[1747890550160,5.65067525,176.97,176.93,14.16638689]
[1747890550541,5.65067525,176.97,176.89,26.0]
[1747890550542,5.65067525,176.97,176.92,14.16638689]
[1747890550746,19.81706214,176.97,176.92,14.16638689]
[1747890552246,33.94299299,176.98,176.92,14.16638689]
[1747890552648,19.7766061,176.98,176.89,26.0]
[1747890552948,33.94299299,176.98,176.92,14.16638689]
[1747890555747,19.7766061,176.98,176.92,14.16638689]
[1747890555949,33.94299299,176.98,176.92,14.16638689]
[1747890556468,14.16638689,176.97,176.92,14.16638689]
[1747890557654,5.65035597,176.98,176.96,14.16638689]
[1747890557875,5.65035597,176.98,176.92,26.0]
[1747890558182,5.65035597,176.98,176.96,14.16638689]
[1747890558378,5.64971751,177.0,176.96,14.16638689]
[1747890559392,5.64971751,177.0,176.97,14.16638689]
[1747890559758,39.54876009,177.03,176.98,14.16638689]
[1747890559980,5.64876009,177.03,176.99,14.16638689]
[1747890560168,5.64876009,177.03,177.0,14.16638689]
[1747890560368,5.64844103,177.04,177.0,14.16638689]
[1747890560572,18.79181043,177.0,176.88,12.48607401]
[1747890560761,18.79181043,177.0,176.91,14.16638689]
[1747890560762,14.16638689,176.97,176.91,14.16638689]
[1747890561150,14.16638689,176.97,176.92,14.16638689]
[1747890561575,14.16638689,176.97,176.89,26.0]
[1747890561776,14.16638689,176.97,176.92,14.16638689]
[1747890562087,14.16638689,176.96,176.89,26.0]
[1747890562288,14.16638689,176.95,176.89,26.0]
[1747890562587,5.65163332,176.94,176.92,14.16638689]
[1747890562878,5.65163332,176.94,176.91,14.16638689]
[1747890563593,5.65163332,176.94,176.9,14.16638689]
[1747890563797,19.81802021,176.94,176.86,27.6571]
[1747890563965,5.65163332,176.94,176.89,14.16638689]
[1747890564397,5.65163332,176.94,176.86,27.6571]
[1747890564398,19.78071662,176.94,176.86,27.6571]
[1747890564701,33.94710351,176.94,176.88,14.16638689]
[1747890565067,33.94710351,176.94,176.86,27.6571]
[1747890565292,33.94710351,176.94,176.89,14.16638689]
[1747890565462,19.78071662,176.94,176.9,14.16638689]
[1747890565863,19.78071662,176.94,176.89,14.16638689]
[1747890566089,33.94710351,176.94,176.89,14.16638689]
[1747890566470,33.94710351,176.94,176.86,27.6571]
[1747890566745,33.94710351,176.94,176.83,6.071]
[1747890566746,18.79181043,176.92,176.79,7.91937651]
[1747890566866,14.16638689,176.9,176.84,14.16638689]
[1747890567296,14.16638689,176.9,176.82,26.0]
[1747890567503,14.16638689,176.89,176.83,14.16638689]
[1747890568074,14.16638689,176.9,176.84,14.16638689]
[1747890568666,5.65323082,176.89,176.84,14.16638689]
[1747890568864,5.65323082,176.89,176.76,4.46592158]
[1747890568865,14.16638689,176.85,176.76,1.6454]
[1747890569163,14.16638689,176.85,176.79,40.16638689]
[1747890569370,14.16638689,176.86,176.81,14.16638689]
[1747890569575,14.16638689,176.86,176.79,26.0]
[1747890569576,33.9,176.87,176.83,14.16638689]
[1747890569990,33.9,176.87,176.84,14.16638689]
[1747890570198,33.9,176.87,176.83,14.16638689]
[1747890570891,39.55397981,176.87,176.83,14.16638689]
[1747890571088,5.65259171,176.91,176.84,14.16638689]
[1747890571304,53.7389786,176.91,176.86,14.16638689]
[1747890571834,39.57259171,176.91,176.86,14.16638689]
[1747890572919,53.7389786,176.91,176.86,14.16638689]
[1747890573296,5.65259171,176.91,176.88,14.16638689]
[1747890573499,42.28,176.92,176.88,14.16638689]
[1747890574090,62.09872575,176.92,176.86,14.16638689]
[1747890574327,62.09872575,176.92,176.87,14.16638689]
[1747890574519,47.93233886,176.92,176.88,14.16638689]
[1747890574909,42.28,176.92,176.89,14.16638689]
[1747890575303,47.93237721,176.92,176.89,14.16638689]
[1747890575624,47.93237721,176.92,176.85,1.6229]
[1747890575923,47.93237721,176.92,176.88,14.16638689]
[1747890578221,42.28,176.92,176.89,14.16638689]
[1747890578404,42.28,176.97,176.91,14.16638689]
[1747890578609,76.2,176.97,176.93,14.16638689]
[1747890578810,47.9307047,176.97,176.89,26.0]
[1747890579116,62.09709159,176.97,176.92,14.16638689]
[1747890579714,76.22377972,176.97,176.92,14.16638689]
[1747890580123,14.16638689,176.96,176.91,14.16638689]
[1747890580509,62.05739283,176.97,176.93,14.16638689]
[1747890581597,62.05739283,176.97,176.89,26.0]
[1747890581598,76.22377972,176.97,176.88,26.0]
[1747890581804,14.16638689,176.96,176.91,14.16638689]
[1747890582226,14.16638689,176.96,176.87,26.0]
[1747890582227,14.16638689,176.95,176.87,26.0]
[1747890582410,14.16638689,176.94,176.88,14.16638689]
[1747890583023,5.65195274,176.93,176.88,14.16638689]
[1747890583225,19.81833963,176.93,176.87,26.0]
[1747890583439,19.81833963,176.93,176.88,14.16638689]
[1747890583726,67.8682215,176.93,176.87,40.16638689]
[1747890584108,53.70183461,176.93,176.88,14.16638689]
[1747890584615,67.8682215,176.93,176.88,14.16638689]
[1747890585116,67.8682215,176.93,176.87,40.16638689]
[1747890585312,67.8682215,176.93,176.88,14.16638689]
[1747890585534,39.57195274,176.93,176.89,14.16638689]
[1747890585835,39.57195274,176.93,176.9,14.16638689]
[1747890586336,39.57195274,176.93,176.91,14.16638689]
[1747890586337,33.92,176.93,176.91,14.16638689]
[1747890586542,5.65099457,176.96,176.92,14.16638689]
[1747890586835,5.65099457,176.96,176.94,14.16638689]
[1747890587331,42.28,176.97,176.95,14.16638689]
[1747890587519,39.56971751,177.0,176.96,14.16638689]
[1747890587704,5.64971751,177.0,176.96,14.16638689]
[1747890587909,5.64971751,177.0,176.98,14.16638689]
[1747890588347,5.64971751,177.0,176.97,14.16638689]
[1747890589141,5.64971751,177.0,176.94,26.0]
[1747890589307,33.94039818,177.0,176.94,40.16638689]
[1747890589643,33.94039818,177.0,176.95,14.16638689]
[1747890594117,53.69401129,177.0,176.95,14.16638689]
[1747890597016,67.86039818,177.0,176.94,14.16638689]
[1747890599444,67.86039818,177.0,176.95,14.16638689]
[1747890599749,53.69401129,177.0,176.95,14.16638689]
[1747890600832,53.69401129,177.0,176.93,1.6239]
[1747890600833,53.69401129,177.0,176.91,6.0444]
[1747890601038,14.16638689,176.98,176.92,14.16638689]
[1747890601248,155.69181043,176.97,176.85,1.5668]
[1747890601425,14.16638689,176.93,176.88,14.16638689]
[1747890601826,14.16638689,176.93,176.86,26.0]
[1747890602056,14.16638689,176.93,176.85,1.5668]
[1747890602254,33.9,176.96,176.86,26.0]
[1747890602255,5.65259171,176.91,176.86,26.0]
[1747890602427,5.65259171,176.91,176.87,14.16638689]
[1747890604762,5.65259171,176.91,176.86,26.0]
[1747890604963,5.65259171,176.91,176.87,14.16638689]
[1747890606429,5.6522822,176.92,176.88,14.16638689]
[1747890606733,5.6522822,176.92,176.89,14.16638689]
[1747890608467,5.65195274,176.93,176.89,14.16638689]
[1747890609065,19.81833963,176.93,176.88,14.16638689]
[1747890609563,19.81802021,176.94,176.89,14.16638689]
[1747890610658,5.65227221,176.92,176.88,14.16638689]
[1747890614366,5.65227221,176.92,176.89,14.16638689]
[1747890614569,5.65163332,176.94,176.89,14.16638689]
[1747890614864,19.78071662,176.94,176.9,14.16638689]
[1747890615069,14.16638689,176.93,176.88,14.16638689]
[1747890616163,14.16638689,176.93,176.87,14.16638689]
[1747890616370,14.16638689,176.92,176.86,14.16638689]
[1747890616556,14.16638689,176.93,176.87,14.16638689]
[1747890617469,5.65227221,176.92,176.87,14.16638689]
[1747890617677,5.65227221,176.92,176.88,14.16638689]
[1747890618064,5.65227221,176.92,176.85,1.5668]
[1747890618272,5.65227221,176.92,176.87,14.16638689]
[1747890621790,5.65227221,176.92,176.85,1.5668]
[1747890622078,5.65227221,176.92,176.87,14.16638689]
[1747890622782,19.8186591,176.92,176.87,14.16638689]
[1747890623282,33.94933963,176.92,176.85,1.5668]
[1747890623460,14.16638689,176.91,176.86,14.16638689]
[1747890623863,5.65291124,176.9,176.87,14.16638689]
[1747890625089,33.94933963,176.92,176.86,14.16638689]
[1747890625274,14.16638689,176.91,176.86,14.16638689]
[1747890625583,14.16638689,176.91,176.85,1.5668]
[1747890625584,14.16638689,176.88,176.81,1.5907]
[1747890625786,14.16638689,176.86,176.8,14.16638689]
[1747890626561,14.16638689,176.83,176.77,1.5907]
[1747890626870,5.6570685,176.77,176.75,7.91937651]
[1747890627171,5.6570685,176.77,176.72,14.16638689]
[1747890627377,5.6570685,176.77,176.73,14.16638689]
[1747890629100,5.6567485,176.78,176.7,38.49025066]
[1747890629266,14.16638689,176.77,176.7,38.49025066]
[1747890629468,14.16638689,176.77,176.71,14.16638689]
[1747890630160,14.16638689,176.77,176.72,14.16638689]
[1747890630582,14.16638689,176.77,176.71,14.16638689]
[1747890631088,14.16638689,176.77,176.7,38.49025066]
[1747890631089,14.16638689,176.77,176.7,26.0]
[1747890631298,5.65738854,176.76,176.71,14.16638689]
[1747890631597,5.65738854,176.76,176.7,14.16638689]
[1747890631598,19.82377543,176.76,176.7,14.16638689]
[1747890631804,14.16638689,176.75,176.7,14.16638689]
[1747890632094,14.16638689,176.73,176.67,26.0]
[1747890632291,14.16638689,176.73,176.67,40.16638689]
[1747890633501,5.65866908,176.72,176.67,40.16638689]
[1747890633681,5.65866908,176.72,176.68,14.16638689]
[1747890635105,5.65866908,176.72,176.66,26.0]
[1747890635414,5.65866908,176.72,176.67,14.16638689]
[1747890635577,5.65866908,176.72,176.68,14.16638689]
[1747890637474,5.65866908,176.72,176.67,14.16638689]
[1747890638397,19.82505597,176.72,176.67,14.16638689]
[1747890638894,14.16638689,176.71,176.65,14.16638689]
[1747890639101,14.16638689,176.69,176.63,14.16638689]
[1747890639297,14.16638689,176.68,176.63,14.16638689]
[1747890639498,14.16638689,176.68,176.62,14.16638689]
[1747890639693,33.70324717,176.68,176.62,14.16638689]
[1747890639896,14.16638689,176.67,176.62,14.16638689]
[1747890640192,14.16638689,176.64,176.58,1.6067]
[1747890640405,14.16638689,176.64,176.59,40.16638689]
[1747890640722,40.26,176.66,176.61,14.16638689]
[1747890640895,40.26,176.66,176.62,14.16638689]
[1747890640896,5.6609114,176.65,176.62,14.16638689]
[1747890641092,5.6609114,176.65,176.61,14.16638689]
[1747890641323,5.6609114,176.65,176.59,26.0]
[1747890641615,19.82729829,176.65,176.59,40.16638689]
[1747890641860,14.16638689,176.64,176.59,40.16638689]
[1747890642400,5.6609114,176.65,176.6,14.16638689]
[1747890643427,19.82729829,176.65,176.59,40.16638689]
[1747890644295,19.82729829,176.65,176.6,14.16638689]
[1747890644495,33.96,176.64,176.52,1.6575]
[1747890644692,14.16638689,176.62,176.56,14.16638689]
[1747890644896,5.66219353,176.61,176.52,1.6575]
[1747890645113,5.66219353,176.61,176.56,14.16638689]
[1747890646328,14.16638689,176.62,176.56,14.16638689]
[1747890646734,19.81595348,176.63,176.57,14.16638689]
[1747890646915,33.98234037,176.63,176.57,14.16638689]
[1747890647226,14.16638689,176.61,176.56,14.16638689]
[1747890647605,14.16638689,176.58,176.52,1.6575]
[1747890647806,14.16638689,176.54,176.47,1.5248]
[1747890648241,5.66475953,176.53,176.49,40.16638689]
[1747890649044,5.66475953,176.53,176.5,14.16638689]
[1747890649702,5.66475953,176.53,176.51,14.16638689]
[1747890649932,5.66475953,176.53,176.52,14.16638689]
[1747890650103,5.66475953,176.53,176.49,26.0]
[1747890650306,5.66475953,176.53,176.51,14.16638689]
[1747890650537,5.66475953,176.53,176.49,26.0]
[1747890650835,5.66475953,176.53,176.52,14.16638689]
[1747890651017,5.66475953,176.53,176.49,26.0]
[1747890651331,5.66475953,176.53,176.5,14.16638689]
[1747890651532,5.66475953,176.53,176.51,14.16638689]
[1747890653650,5.66475953,176.53,176.5,14.16638689]
[1747890655956,39.62447478,176.54,176.52,14.16638689]
[1747890656155,39.62447478,176.54,176.53,14.16638689]
[1747890656651,39.62447478,176.54,176.49,26.0]
[1747890657145,39.62447478,176.54,176.51,14.16638689]
[1747890657543,39.62447478,176.54,176.5,14.16638689]
[1747890657722,39.62447478,176.54,176.49,26.0]
[1747890657925,39.62447478,176.54,176.5,14.16638689]
[1747890659847,39.62447478,176.54,176.47,1.5248]
[1747890660050,39.62447478,176.54,176.5,14.16638689]
[1747890660853,5.6641871,176.55,176.53,14.16638689]
[1747890661025,5.66315551,176.58,176.54,14.16638689]
[1747890661224,33.98,176.59,176.57,14.16638689]
[1747890661547,14.16638689,176.58,176.49,26.0]
[1747890661752,14.16638689,176.58,176.53,14.16638689]
[1747890662620,5.66347624,176.57,176.53,14.16638689]
[1747890663049,5.66347624,176.57,176.52,14.16638689]
[1747890663749,5.66347624,176.57,176.53,14.16638689]
[1747890664450,5.66315551,176.58,176.53,14.16638689]
[1747890664655,5.66315551,176.58,176.48,5.66633046]
[1747890664851,5.66315551,176.58,176.54,14.16638689]
[1747890665033,5.66315551,176.58,176.53,14.16638689]
[1747890665751,74.9269193,176.62,176.55,14.16638689]
[1747890665930,185.04638689,176.61,176.56,14.16638689]
[1747890666133,170.88,176.61,176.56,14.16638689]
[1747890666331,176.54219353,176.61,176.58,14.16638689]
[1747890667348,176.54219353,176.61,176.57,14.16638689]
[1747890668127,176.54219353,176.61,176.53,31.66459078]
[1747890668328,176.54219353,176.61,176.57,14.16638689]
[1747890668937,176.54219353,176.61,176.58,14.16638689]
[1747890669442,176.54219353,176.61,176.57,14.16638689]
[1747890669838,204.86406425,176.61,176.53,26.0]
[1747890670035,204.86406425,176.61,176.55,14.16638689]
[1747890670251,190.69767736,176.61,176.57,14.16638689]
[1747890670562,176.54219353,176.61,176.58,14.16638689]
[1747890671251,176.54219353,176.61,176.57,14.16638689]
[1747890671554,168.56219353,176.61,176.57,14.16638689]
[1747890673044,182.71767736,176.61,176.57,14.16638689]
[1747890673246,196.88406425,176.61,176.56,14.16638689]
[1747890674163,182.71767736,176.61,176.56,14.16638689]
[1747890675063,156.71767736,176.61,176.56,14.16638689]
[1747890675972,170.88406425,176.61,176.56,14.16638689]
[1747890676141,14.16638689,176.6,176.54,14.16638689]